bitfinex-derivatives/quotes_BTCF0:USTF0_20251229
["timestamp","ask_amount","ask_price","bid_price","bid_amount"]
[1766991925592,0.0111499,89784.0,89763.0,0.1508]
[1766991926387,0.0111499,89784.0,89765.0,0.00016708]
[1766991928390,0.0111496,89786.0,89766.0,0.0111519]
[1766991928593,0.0111495,89787.0,89766.0,0.0111519]
[1766991929186,0.056,89788.0,89766.0,0.0111519]
[1766991930496,0.0671494,89788.0,89766.0,0.0111519]
[1766991930896,0.00016708,89790.0,89767.0,0.1113871]
[1766991931109,0.05612708,89790.0,89767.0,0.1113871]
[1766991931296,0.05612708,89790.0,89765.0,0.00016708]
[1766991931604,0.05612708,89790.0,89766.0,0.1113871]
[1766991933208,0.06727618,89790.0,89769.0,0.0111516]
[1766991935110,0.02390348,89789.0,89769.0,0.0111516]
[1766991935300,0.02390619,89788.0,89769.0,0.0111516]
[1766991935506,0.06727618,89790.0,89769.0,0.0111516]
[1766991935704,0.0239066,89789.0,89769.0,0.0111516]
[1766991935906,0.0239066,89788.0,89771.0,0.0111514]
[1766991936103,0.05612708,89790.0,89772.0,0.05596]
[1766991936304,0.05612708,89790.0,89773.0,0.0111512]
[1766991936305,0.02390656,89789.0,89773.0,0.0111512]
[1766991936502,0.05612708,89790.0,89773.0,0.0111512]
[1766991936707,0.02391029,89789.0,89773.0,0.0111512]
[1766991936908,0.05612708,89790.0,89773.0,0.0111512]
[1766991937109,0.02391022,89789.0,89773.0,0.0111512]
[1766991937411,0.00016708,89790.0,89772.0,0.05596]
[1766991937612,0.05612708,89790.0,89772.0,0.05596]
[1766991937810,0.00016708,89790.0,89777.0,0.0111507]
[1766991939213,0.02392667,89789.0,89777.0,0.0111507]
[1766991939412,0.00016708,89790.0,89777.0,0.0111507]
[1766991939618,0.0239267,89789.0,89774.0,0.011151]
[1766991939817,0.00016708,89790.0,89774.0,0.011151]
[1766991940020,0.02392668,89789.0,89774.0,0.011151]
[1766991940224,0.00016708,89790.0,89774.0,0.011151]
[1766991940416,0.02393024,89789.0,89774.0,0.011151]
[1766991940716,0.00016708,89790.0,89774.0,0.011151]
[1766991940917,0.02393024,89789.0,89774.0,0.011151]
[1766991941114,0.00016708,89790.0,89774.0,0.011151]
[1766991941318,0.02393024,89789.0,89776.0,0.0111507]
[1766991941512,0.02393024,89788.0,89776.0,0.0111507]
[1766991941713,0.00016708,89790.0,89776.0,0.0111507]
[1766991942020,0.02393588,89789.0,89776.0,0.0111507]
[1766991942316,0.00016708,89790.0,89776.0,0.0111507]
[1766991942618,0.02393581,89789.0,89776.0,0.0111507]
[1766991942819,0.00016708,89790.0,89776.0,0.0111507]
[1766991943021,0.02393581,89789.0,89776.0,0.0111507]
[1766991943216,0.00016708,89790.0,89776.0,0.0111507]
[1766991943412,0.02393603,89789.0,89776.0,0.0111507]
[1766991943617,0.00016708,89790.0,89776.0,0.0111507]
[1766991943814,0.00016708,89790.0,89772.0,0.05596]
[1766991945215,0.00016708,89790.0,89775.0,0.0111508]
[1766991947923,0.00016708,89790.0,89772.0,0.05596]
[1766991947924,0.05596,89796.0,89780.0,0.17713796]
[1766991948119,0.024114,89795.0,89782.0,0.01115]
[1766991948319,0.024114,89794.0,89782.0,0.01115]
[1766991948518,0.024114,89793.0,89782.0,0.01115]
[1766991948719,0.05596,89796.0,89782.0,0.01115]
[1766991948927,0.02411221,89795.0,89782.0,0.01115]
[1766991949130,0.02411221,89794.0,89780.0,0.17713796]
[1766991949331,0.0111485,89795.0,89773.0,0.09476]
[1766991949528,0.0111488,89793.0,89773.0,0.09476]
[1766991949721,0.02411111,89792.0,89774.0,0.11137469]
[1766991949920,0.0111488,89793.0,89774.0,0.11137469]
[1766991950120,0.02411117,89792.0,89774.0,0.11137469]
[1766991950327,0.0111488,89793.0,89774.0,0.11137469]
[1766991950628,0.02411305,89792.0,89774.0,0.11137469]
[1766991950832,0.05596,89796.0,89774.0,0.11137469]
[1766991951030,0.02411307,89795.0,89774.0,0.11137469]
[1766991951229,0.02411307,89794.0,89774.0,0.11137469]
[1766991951530,0.05596,89796.0,89774.0,0.11137469]
[1766991951531,0.02411307,89793.0,89774.0,0.11137469]
[1766991951733,0.02411307,89792.0,89774.0,0.11137469]
[1766991952031,0.05596,89796.0,89774.0,0.11137469]
[1766991952230,0.02411296,89795.0,89774.0,0.11137469]
[1766991952431,0.02411296,89794.0,89774.0,0.11137469]
[1766991952630,0.02411296,89793.0,89774.0,0.11137469]
[1766991952826,0.02411296,89792.0,89774.0,0.11137469]
[1766991953031,0.0111485,89795.0,89774.0,0.11137469]
[1766991953236,0.02411282,89794.0,89774.0,0.11137469]
[1766991953432,0.02411282,89793.0,89774.0,0.11137469]
[1766991953626,0.02411282,89792.0,89774.0,0.11137469]
[1766991953933,0.0111485,89795.0,89774.0,0.11137469]
[1766991954133,0.0241128,89794.0,89774.0,0.11137469]
[1766991954331,0.0241128,89793.0,89774.0,0.11137469]
[1766991954529,0.0241128,89792.0,89774.0,0.11137469]
[1766991954732,0.05596,89796.0,89775.0,0.0111509]
[1766991954924,0.02411285,89795.0,89775.0,0.0111509]
[1766991955126,0.02411285,89794.0,89777.0,0.0111506]
[1766991955431,0.02411285,89793.0,89780.0,0.17713796]
[1766991955633,0.05596,89796.0,89780.0,0.17713796]
[1766991955822,0.02411316,89795.0,89780.0,0.17713796]
[1766991956026,0.05596,89796.0,89780.0,0.17713796]
[1766991956230,0.05596,89796.0,89777.0,0.0111506]
[1766991956432,0.02411367,89795.0,89777.0,0.0111506]
[1766991956736,0.05596,89796.0,89777.0,0.0111506]
[1766991957037,0.02411375,89795.0,89777.0,0.0111506]
[1766991957233,0.05596,89796.0,89777.0,0.0111506]
[1766991957421,0.02411362,89795.0,89777.0,0.0111506]
[1766991957626,0.05596,89796.0,89777.0,0.0111506]
[1766991957832,0.02411364,89795.0,89780.0,0.17713796]
[1766991958037,0.05596,89796.0,89780.0,0.17713796]
[1766991958238,0.05596,89796.0,89783.0,0.0111499]
[1766991958541,0.05596,89796.0,89780.0,0.17713796]
[1766991959236,0.05596,89796.0,89775.0,0.0111509]
[1766991959537,0.02411343,89795.0,89775.0,0.0111509]
[1766991959736,0.02411343,89794.0,89775.0,0.0111509]
[1766991960036,0.05596,89796.0,89775.0,0.0111509]
[1766991960236,0.0241134,89795.0,89775.0,0.0111509]
[1766991960437,0.0241134,89794.0,89775.0,0.0111509]
[1766991960629,0.0241134,89793.0,89775.0,0.0111509]
[1766991960831,0.05596,89796.0,89775.0,0.0111509]
[1766991961140,0.02411451,89795.0,89775.0,0.0111509]
[1766991961433,0.05596,89796.0,89773.0,0.09476]
[1766991961838,0.05596,89796.0,89774.0,0.11137717]
[1766991962333,0.0111485,89795.0,89774.0,0.11137717]
[1766991962633,0.0111485,89795.0,89774.0,0.12252817]
[1766991963042,0.17713796,89784.0,89761.0,0.09476]
[1766991963229,0.17713796,89775.0,89732.0,0.05998003]
[1766991963435,0.17713796,89760.0,89733.0,0.15068]
[1766991963636,0.05592,89763.0,89740.0,0.17713796]
[1766991963941,0.05592,89763.0,89741.0,0.05592]
[1766991964140,0.0111522,89765.0,89741.0,0.0670751]
[1766991964436,0.00016708,89762.0,89744.0,0.00016708]
[1766991964632,0.18829076,89760.0,89744.0,0.00016708]
[1766991964840,0.17713796,89760.0,89744.0,0.00016708]
[1766991966436,0.18829076,89760.0,89744.0,0.00016708]
[1766991966736,0.18829076,89760.0,89741.0,0.05592]
[1766991966939,0.05592,89759.0,89741.0,0.05592]
[1766991967245,0.0111534,89756.0,89741.0,0.05592]
[1766991967739,0.067073,89759.0,89741.0,0.05592]
[1766991968136,0.17713796,89751.0,89727.0,0.09476]
[1766991968340,0.23305796,89751.0,89728.0,0.05592]
[1766991968738,0.24421196,89751.0,89728.0,0.0670768]
[1766991968941,0.23305796,89751.0,89728.0,0.05592]
[1766991969151,0.23305796,89751.0,89731.0,0.0111564]
[1766991970033,0.23305796,89751.0,89728.0,0.0670768]
[1766991970230,0.23305796,89751.0,89728.0,0.05592]
[1766991970535,0.05592,89751.0,89728.0,0.05592]
[1766991970734,0.17713796,89750.0,89728.0,0.05592]
[1766991970944,0.18829206,89750.0,89728.0,0.05592]
[1766991971836,0.05596,89749.0,89730.0,0.17713796]
[1766991972338,0.05596,89749.0,89731.0,0.0111564]
[1766991972643,0.05596,89749.0,89734.0,0.011156]
[1766991973034,0.18829076,89760.0,89734.0,0.011156]
[1766991973238,0.15076,89759.0,89734.0,0.011156]
[1766991973434,0.15076,89758.0,89734.0,0.011156]
[1766991973635,0.18829076,89760.0,89734.0,0.011156]
[1766991973943,0.15076,89759.0,89734.0,0.011156]
[1766991974336,0.0111531,89758.0,89734.0,0.011156]
[1766991974537,0.15076,89757.0,89734.0,0.011156]
[1766991976342,0.17713796,89750.0,89730.0,0.17713796]
[1766991976543,0.05596,89749.0,89728.0,0.05592]
[1766991976939,0.05596,89749.0,89729.0,0.11142619]
[1766991977140,0.05596,89749.0,89730.0,0.0111565]
[1766991977536,0.0111543,89748.0,89728.0,0.05592]
[1766991977949,0.0111543,89748.0,89729.0,0.11143364]
[1766991978342,0.05596,89749.0,89710.0,0.17713796]
[1766991978343,0.17713796,89740.0,89710.0,0.17713796]
[1766991978549,0.00016718,89734.0,89720.0,0.0111577]
[1766991978849,0.00016718,89734.0,89722.0,0.0111575]
[1766991979046,0.00016718,89734.0,89723.0,0.0948]
[1766991979642,0.00016718,89734.0,89726.0,0.011157]
[1766991980750,0.00016718,89734.0,89727.0,0.05596]
[1766991983845,0.0111513,89773.0,89727.0,0.05596]
[1766991984055,0.17713796,89760.0,89730.0,0.17713796]
[1766991984356,0.0111536,89754.0,89732.0,0.0111562]
[1766991984544,0.17713796,89750.0,89733.0,0.05596]
[1766991984851,0.17730514,89750.0,89733.0,0.05612718]
[1766991985352,0.00016718,89750.0,89733.0,0.05612718]
[1766991985552,0.17730514,89750.0,89733.0,0.05612718]
[1766991985743,0.00016718,89750.0,89733.0,0.05612718]
[1766991985944,0.23326514,89750.0,89733.0,0.05612718]
[1766991987453,0.05612718,89750.0,89734.0,0.011156]
[1766991987952,0.05612718,89750.0,89733.0,0.05612718]
[1766991989752,0.06728138,89750.0,89733.0,0.05612718]
[1766991989947,0.17713796,89743.0,89733.0,0.05612718]
[1766991990356,0.0111545,89747.0,89733.0,0.05612718]
[1766991990855,0.011155,89743.0,89733.0,0.05612718]
[1766991991246,0.0111546,89746.0,89733.0,0.05612718]
[1766991991755,0.0111542,89749.0,89733.0,0.05612718]
[1766991992755,0.0111545,89747.0,89732.0,0.05626]
[1766991992956,0.0111545,89747.0,89732.0,0.04454]
[1766991994154,0.0948,89749.0,89732.0,0.04454]
[1766991994843,0.1059542,89749.0,89732.0,0.04454]
[1766991996459,0.02459608,89748.0,89732.0,0.04454]
[1766991996658,0.02459608,89747.0,89732.0,0.04454]
[1766991996849,0.1059542,89749.0,89732.0,0.04454]
[1766991997049,0.02459608,89748.0,89732.0,0.04454]
[1766991997251,0.02459608,89747.0,89732.0,0.04454]
[1766991997450,0.1059542,89749.0,89732.0,0.04454]
[1766991997651,0.02460064,89748.0,89732.0,0.04454]
[1766991997858,0.02460064,89747.0,89732.0,0.04454]
[1766991998055,0.0111545,89747.0,89732.0,0.04454]
[1766991998257,0.0111547,89745.0,89732.0,0.04454]
[1766991998558,0.02460179,89744.0,89732.0,0.04454]
[1766991998752,0.0111544,89748.0,89732.0,0.04454]
[1766991998953,0.02460153,89747.0,89732.0,0.04454]
[1766991999153,0.02460153,89746.0,89732.0,0.04454]
[1766991999358,0.02460153,89745.0,89732.0,0.04454]
[1766991999559,0.02460153,89744.0,89732.0,0.04454]
[1766991999762,0.0111544,89748.0,89732.0,0.04454]
[1766991999953,0.02460151,89747.0,89732.0,0.04454]
[1766992000153,0.03575611,89746.0,89732.0,0.04454]
[1766992000361,0.02460151,89745.0,89732.0,0.04454]
[1766992000659,0.02460151,89744.0,89732.0,0.04454]
[1766992000856,0.02460151,89743.0,89732.0,0.04454]
[1766992001057,0.02460151,89742.0,89732.0,0.04454]
[1766992001258,0.0948,89749.0,89732.0,0.04454]
[1766992001458,0.02460176,89748.0,89732.0,0.04454]
[1766992001759,0.0111556,89738.0,89728.0,0.05596]
[1766992001953,0.0948,89749.0,89701.0,0.0111601]
[1766992001954,0.17713796,89740.0,89701.0,0.0111601]
[1766992002159,0.17713796,89740.0,89702.0,0.15076]
[1766992002160,0.00016718,89729.0,89702.0,0.15076]
[1766992002459,0.00016718,89729.0,89713.0,0.0111585]
[1766992002760,0.00016718,89729.0,89714.0,0.15076]
[1766992002957,0.00016718,89729.0,89715.0,0.0111583]
[1766992003170,0.0111554,89739.0,89715.0,0.0111583]
[1766992003362,0.0111557,89737.0,89716.0,0.11146345]
[1766992004154,0.00016718,89735.0,89718.0,0.00016718]
[1766992004355,0.0111563,89732.0,89718.0,0.00016718]
[1766992004553,0.00016718,89735.0,89718.0,0.05636718]
[1766992004757,0.0111561,89734.0,89719.0,0.11145165]
[1766992004962,0.00016718,89735.0,89719.0,0.11145165]
[1766992007954,0.00016718,89735.0,89720.0,0.05596]
[1766992008966,0.01132318,89735.0,89720.0,0.05596]
[1766992009763,0.00016718,89735.0,89720.0,0.05596]
[1766992010172,0.0111567,89729.0,89720.0,0.05596]
[1766992010870,0.0111563,89732.0,89720.0,0.05596]
[1766992011364,0.00016718,89735.0,89720.0,0.05596]
[1766992011668,0.0111562,89733.0,89719.0,0.0111579]
[1766992011868,0.02463935,89732.0,89719.0,0.0111579]
[1766992012068,0.0671162,89733.0,89719.0,0.0111579]
[1766992012271,0.02463933,89732.0,89718.0,0.05636718]
[1766992012466,0.05596,89733.0,89718.0,0.05636718]
[1766992012671,0.02463523,89732.0,89718.0,0.05636718]
[1766992012968,0.05596,89733.0,89718.0,0.05636718]
[1766992013175,0.0111564,89731.0,89718.0,0.05636718]
[1766992013366,0.05596,89733.0,89721.0,0.0111576]
[1766992013566,0.05596,89733.0,89718.0,0.06752508]
[1766992014371,0.05596,89733.0,89720.0,0.0111577]
[1766992014665,0.055755,89775.0,89718.0,0.05636718]
[1766992014666,0.0111544,89748.0,89718.0,0.05636718]
[1766992014867,0.02462965,89747.0,89725.0,0.0111571]
[1766992015068,0.02462965,89746.0,89726.0,0.05596]
[1766992015269,0.02462965,89745.0,89726.0,0.05596]
[1766992015470,0.05596,89748.0,89727.0,0.0111568]
[1766992015676,0.0111545,89747.0,89726.0,0.05596]
[1766992015880,0.00016718,89746.0,89726.0,0.05596]
[1766992016279,0.0111548,89744.0,89726.0,0.05596]
[1766992017263,0.00016718,89746.0,89726.0,0.05596]
[1766992017468,0.0948,89750.0,89726.0,0.05596]
[1766992017469,0.0111542,89749.0,89727.0,0.11143923]
[1766992018276,0.0948,89750.0,89727.0,0.11143923]
[1766992018476,0.00016718,89747.0,89727.0,0.11143923]
[1766992018777,0.0111555,89739.0,89727.0,0.11143923]
[1766992018978,0.0111557,89737.0,89727.0,0.11143923]
[1766992019477,0.00016718,89747.0,89726.0,0.05596]
[1766992021180,0.09098326,89776.0,89727.0,0.11143737]
[1766992021378,0.0111526,89762.0,89730.0,0.0111565]
[1766992021780,0.0111521,89766.0,89726.0,0.05596]
[1766992022073,0.00016718,89755.0,89737.0,0.00016718]
[1766992022279,0.05596,89761.0,89738.0,0.05596]
[1766992022677,0.0111528,89760.0,89737.0,0.00016718]
[1766992022882,0.0111529,89759.0,89737.0,0.00016718]
[1766992023280,0.00016718,89757.0,89737.0,0.00016718]
[1766992025780,0.01132038,89757.0,89737.0,0.00016718]
[1766992026576,0.0111541,89750.0,89737.0,0.00016718]
[1766992026772,0.05596,89749.0,89731.0,0.15076]
[1766992026982,0.05596,89749.0,89731.0,0.05596]
[1766992027185,0.05596,89749.0,89727.0,0.0671168]
[1766992027388,0.05596,89749.0,89727.0,0.05596]
[1766992027776,0.05596,89749.0,89729.0,0.00016718]
[1766992028374,0.0671143,89749.0,89729.0,0.00016718]
[1766992028689,0.02451958,89748.0,89729.0,0.00016718]
[1766992028880,0.05596,89749.0,89729.0,0.00016718]
[1766992029078,0.0111548,89745.0,89729.0,0.00016718]
[1766992030282,0.011155,89742.0,89729.0,0.00016718]
[1766992031287,0.0111554,89740.0,89729.0,0.00016718]
[1766992031786,0.0111556,89738.0,89729.0,0.00016718]
[1766992032687,0.0111559,89736.0,89729.0,0.00016718]
[1766992033387,0.0111562,89733.0,89729.0,8e-08]
[1766992033782,0.0111546,89746.0,89729.0,8e-08]
[1766992033990,0.02451976,89745.0,89729.0,8e-08]
[1766992034180,0.0111546,89746.0,89729.0,8e-08]
[1766992034376,0.02452065,89745.0,89717.0,0.0948]
[1766992034582,0.0111572,89725.0,89718.0,0.11216]
[1766992034781,0.0111568,89728.0,89718.0,0.11216]
[1766992035190,0.0111571,89726.0,89718.0,0.11216]
[1766992035591,0.0111569,89728.0,89718.0,0.11216]
[1766992035789,0.0111571,89726.0,89718.0,0.11216]
[1766992036089,0.00016718,89731.0,89718.0,0.11216]
[1766992037289,0.05596,89738.0,89718.0,0.11216]
[1766992037688,0.0111542,89749.0,89718.0,0.11216]
[1766992037889,0.17527893,89748.0,89718.0,0.11216]
[1766992038089,0.02451893,89747.0,89718.0,0.11216]
[1766992038292,0.0111564,89731.0,89718.0,0.11216]
[1766992038881,0.05596,89737.0,89718.0,0.11216]
[1766992039588,0.0111563,89732.0,89718.0,0.11216]
[1766992041193,0.0111561,89734.0,89718.0,0.11216]
[1766992041586,0.0111563,89732.0,89718.0,0.11216]
[1766992041889,0.15076,89744.0,89720.0,0.0111577]
[1766992042090,0.02432129,89743.0,89720.0,0.0111577]
[1766992042291,0.12964,89744.0,89720.0,0.0111577]
[1766992042486,0.02432502,89743.0,89720.0,0.0111577]
[1766992042685,0.12964,89744.0,89720.0,0.0111577]
[1766992042982,0.00016718,89741.0,89723.0,0.00016718]
[1766992043184,0.00016718,89741.0,89724.0,0.05596]
[1766992043794,0.15076,89744.0,89725.0,0.11144358]
[1766992044098,0.02432625,89743.0,89725.0,0.11144358]
[1766992044293,0.02433008,89742.0,89726.0,0.011157]
[1766992044490,0.15076,89744.0,89726.0,0.011157]
[1766992044691,0.02433006,89743.0,89726.0,0.011157]
[1766992044885,0.02433006,89742.0,89726.0,0.011157]
[1766992045092,0.15087111,89744.0,89726.0,0.011157]
[1766992045295,0.02432827,89743.0,89726.0,0.011157]
[1766992045492,0.15087111,89744.0,89726.0,0.011157]
[1766992045791,0.02432414,89743.0,89726.0,0.011157]
[1766992045994,0.15087111,89744.0,89726.0,0.011157]
[1766992046294,0.15087111,89744.0,89728.0,0.0111567]
[1766992047092,0.00011111,89744.0,89728.0,0.0111567]
[1766992047487,0.06016518,89767.0,89724.0,0.05596]
[1766992047692,0.0111528,89761.0,89736.0,0.0111557]
[1766992047895,0.0111529,89759.0,89733.0,0.0111561]
[1766992048090,0.0111532,89757.0,89735.0,0.0111558]
[1766992048291,0.01116811,89771.0,89735.0,0.0111558]
[1766992048292,0.17508009,89756.0,89735.0,0.0111558]
[1766992048492,0.08028009,89755.0,89737.0,0.01132278]
[1766992048693,0.02432009,89754.0,89737.0,0.01132278]
[1766992049899,0.02432009,89754.0,89740.0,0.0111553]
[1766992050104,0.02432009,89753.0,89740.0,0.0111553]
[1766992050296,0.05596,89755.0,89740.0,0.0111553]
[1766992050497,0.05596,89755.0,89737.0,0.00016718]
[1766992050698,0.0111521,89766.0,89737.0,0.00016718]
[1766992050897,0.15076,89765.0,89737.0,0.00016718]
[1766992051300,0.0948,89764.0,89745.0,0.0111546]
[1766992051607,0.15076,89763.0,89745.0,0.0111546]
[1766992051805,0.15076,89763.0,89741.0,0.0111551]
[1766992052106,0.15076,89763.0,89742.0,0.05596]
[1766992052806,0.0111514,89772.0,89743.0,0.11141502]
[1766992053105,0.0111516,89770.0,89748.0,0.0111543]
[1766992053406,0.0111521,89766.0,89750.0,0.00016718]
[1766992055808,0.0111517,89769.0,89750.0,0.00016718]
[1766992056808,0.0948,89770.0,89750.0,0.00016718]
[1766992057009,0.0111521,89766.0,89750.0,0.00016718]
[1766992057808,0.0948,89770.0,89750.0,0.00016718]
[1766992058014,0.0948,89770.0,89742.0,0.05596]
[1766992058506,0.0948,89770.0,89742.0,0.0671149]
[1766992058714,0.0111525,89763.0,89742.0,0.0671149]
[1766992059114,0.00016718,89761.0,89744.0,0.01132188]
[1766992060518,0.00016718,89761.0,89744.0,0.00016718]
[1766992062621,0.01131988,89761.0,89744.0,0.00016718]
[1766992063525,0.00016718,89761.0,89744.0,0.00016718]
[1766992064323,0.01131988,89761.0,89744.0,0.00016718]
[1766992068424,0.011153,89759.0,89744.0,0.00016718]
[1766992069323,0.00016718,89761.0,89744.0,0.00016718]
[1766992070226,0.00016718,89761.0,89745.0,0.0111546]
[1766992070422,0.00016718,89761.0,89744.0,0.00016718]
[1766992071334,0.00016718,89761.0,89745.0,0.0111546]
[1766992073830,0.00016718,89761.0,89747.0,0.0111543]
[1766992074734,0.00016718,89761.0,89749.0,0.0111541]
[1766992075934,0.00016718,89761.0,89746.0,0.0111545]
[1766992077634,0.00016718,89761.0,89744.0,0.00016718]
[1766992077836,0.00016718,89761.0,89748.0,0.0111542]
[1766992078131,0.05592,89764.0,89750.0,0.011154]
[1766992078431,0.2024,89806.0,89755.0,0.0111534]
[1766992078632,0.17482107,89790.0,89760.0,0.17727065]
[1766992078825,0.15072,89789.0,89760.0,0.17727065]
[1766992079026,0.01115,89783.0,89766.0,0.00016707]
[1766992079434,0.17727065,89780.0,89766.0,0.00016707]
[1766992079636,0.05592,89779.0,89766.0,0.01131907]
[1766992079838,0.0948,89778.0,89766.0,0.01131907]
[1766992080033,0.0948,89778.0,89768.0,0.0111518]
[1766992080227,0.237,89807.0,89780.0,0.0111502]
[1766992080432,0.0111485,89795.0,89784.0,0.00016707]
[1766992080642,0.32799065,89794.0,89784.0,0.00016707]
[1766992080838,0.0111487,89793.0,89784.0,0.00016707]
[1766992081036,0.0111487,89793.0,89777.0,0.0111506]
[1766992081237,0.17727065,89790.0,89777.0,0.0111506]
[1766992081742,0.0111514,89772.0,89757.0,0.0111532]
[1766992081938,0.17727065,89767.0,89756.0,0.00016707]
[1766992082133,0.0111524,89764.0,89749.0,0.1059541]
[1766992082328,0.0948,89770.0,89744.0,0.0111547]
[1766992082329,0.17727065,89760.0,89744.0,0.0111547]
[1766992082534,0.17727065,89760.0,89746.0,0.0111544]
[1766992082741,0.17727065,89760.0,89748.0,0.0111542]
[1766992083345,0.17727065,89760.0,89745.0,0.00016707]
[1766992083646,0.05608707,89763.0,89745.0,0.00016707]
[1766992084744,0.06723957,89763.0,89745.0,0.00016707]
[1766992084928,0.17727065,89755.0,89745.0,0.00016707]
[1766992085132,0.05592,89755.0,89737.0,0.0948]
[1766992085334,0.05592,89755.0,89746.0,0.01114]
[1766992087543,0.05592,89758.0,89746.0,0.01114]
[1766992087735,0.0670732,89758.0,89746.0,0.01114]
[1766992087934,0.05592,89758.0,89746.0,0.01114]
[1766992088444,0.0111532,89757.0,89746.0,0.01114]
[1766992089438,0.05592,89758.0,89746.0,0.01114]
[1766992091446,0.00016707,89763.0,89746.0,0.01114]
[1766992091652,0.07957782,89762.0,89746.0,0.01114]
[1766992091952,0.17727065,89760.0,89746.0,0.01114]
[1766992092149,0.02365782,89759.0,89746.0,0.01114]
[1766992093655,0.17727065,89756.0,89746.0,0.01114]
[1766992093952,0.05592,89755.0,89734.0,0.0111571]
[1766992094143,0.17727065,89750.0,89717.0,0.0111592]
[1766992094346,0.05592,89749.0,89731.0,0.11141937]
[1766992094552,0.05592,89749.0,89721.0,0.15072]
[1766992094855,0.05592,89749.0,89737.0,0.0111567]
[1766992095760,0.05592,89749.0,89734.0,0.01132427]
[1766992096150,0.05592,89749.0,89734.0,0.00016707]
[1766992098356,0.0111554,89748.0,89734.0,0.00016707]
[1766992098959,0.0111558,89746.0,89734.0,0.00016707]
[1766992099155,0.05592,89749.0,89721.0,0.15072]
[1766992099156,0.011156,89743.0,89721.0,0.15072]
[1766992099353,0.17727065,89740.0,89721.0,0.15072]
[1766992099554,0.17727065,89740.0,89723.0,0.11143178]
[1766992099858,0.17727065,89740.0,89721.0,0.15072]
[1766992100248,0.17727065,89740.0,89722.0,0.11161074]
[1766992100651,0.05592,89742.0,89722.0,0.11161074]
[1766992100851,0.17727065,89740.0,89722.0,0.11161074]
[1766992101258,0.0670763,89742.0,89722.0,0.11161074]
[1766992101446,0.17727065,89740.0,89722.0,0.11161074]
[1766992102353,0.05592,89742.0,89722.0,0.11161074]
[1766992102562,0.17727065,89740.0,89722.0,0.00016716]
[1766992102757,0.05592,89742.0,89702.0,0.0111611]
[1766992102758,0.17727065,89732.0,89702.0,0.0111611]
[1766992102963,0.17727065,89730.0,89702.0,0.03]
[1766992103260,0.05592,89731.0,89712.0,0.0111599]
[1766992103650,0.17743781,89730.0,89714.0,0.0111596]
[1766992103850,0.00016716,89730.0,89713.0,0.00011196]
[1766992104052,0.00016716,89730.0,89723.0,0.0111585]
[1766992104255,0.05592,89734.0,89723.0,0.0111585]
[1766992104853,0.06189664,89756.0,89714.0,0.0948]
[1766992104854,0.0111547,89754.0,89720.0,0.17727065]
[1766992105058,0.17727065,89750.0,89730.0,0.0111575]
[1766992105361,0.17464991,89749.0,89732.0,0.0111573]
[1766992105557,0.02376275,89748.0,89732.0,0.0111573]
[1766992105864,0.02376275,89747.0,89732.0,0.0111573]
[1766992106061,0.15088716,89749.0,89731.0,0.00016716]
[1766992106262,0.02375989,89748.0,89731.0,0.01132466]
[1766992106556,0.02375989,89747.0,89731.0,0.00016716]
[1766992106757,0.15088716,89749.0,89731.0,0.00016716]
[1766992106960,0.02375902,89748.0,89731.0,0.00016716]
[1766992107161,0.02375902,89747.0,89731.0,0.00016716]
[1766992107355,0.15088716,89749.0,89731.0,0.00016716]
[1766992107566,0.02375763,89748.0,89731.0,0.00016716]
[1766992107754,0.02375763,89747.0,89731.0,0.00016716]
[1766992108061,0.15088716,89749.0,89731.0,0.00016716]
[1766992108257,0.02375735,89748.0,89731.0,0.00016716]
[1766992108457,0.02375735,89747.0,89731.0,0.00016716]
[1766992108662,0.15088716,89749.0,89731.0,0.00016716]
[1766992108864,0.02375681,89748.0,89731.0,0.00016716]
[1766992109162,0.02375681,89747.0,89731.0,0.00016716]
[1766992109356,0.15088716,89749.0,89731.0,0.00016716]
[1766992109550,0.0349154,89748.0,89731.0,0.00016716]
[1766992109751,0.0111568,89737.0,89714.0,0.0111596]
[1766992109956,0.17727065,89730.0,89715.0,0.0948]
[1766992110163,0.17727065,89730.0,89715.0,0.11143364]
[1766992110348,0.17727065,89730.0,89714.0,0.0111596]
[1766992112265,0.17727065,89730.0,89713.0,0.00011196]
[1766992112767,0.17727065,89730.0,89701.0,0.0111612]
[1766992112768,0.17727065,89730.0,89698.0,0.0948]
[1766992113066,0.011158,89728.0,89703.0,0.0111609]
[1766992114362,0.0111582,89726.0,89703.0,0.0111609]
[1766992114567,0.05592,89725.0,89703.0,0.0111609]
[1766992114763,0.05592,89725.0,89705.0,0.0111607]
[1766992114964,0.05592,89725.0,89700.0,0.17727065]
[1766992114965,0.05592,89725.0,89707.0,0.0111605]
[1766992115164,0.0111578,89730.0,89709.0,0.0111602]
[1766992115365,0.15072,89729.0,89709.0,0.0111602]
[1766992115565,0.15072,89729.0,89710.0,0.17727065]
[1766992116369,0.05592,89728.0,89709.0,0.0111602]
[1766992117068,0.05592,89728.0,89706.0,0.0111606]
[1766992117271,0.05592,89728.0,89708.0,0.0111603]
[1766992118157,0.05592,89728.0,89710.0,0.0111601]
[1766992118355,0.17727065,89730.0,89710.0,0.0111601]
[1766992118571,0.15076,89729.0,89710.0,0.18843075]
[1766992120168,0.00016716,89731.0,89710.0,0.17727065]
[1766992120357,0.00016716,89731.0,89717.0,0.0111592]
[1766992120869,0.00016716,89731.0,89714.0,0.0111596]
[1766992121470,0.00016716,89731.0,89720.0,0.17727065]
[1766992121973,0.0111537,89762.0,89723.0,0.0111585]
[1766992122263,0.0111554,89749.0,89720.0,0.17727065]
[1766992122464,0.02377689,89761.0,89714.0,0.05596]
[1766992122465,0.0111555,89747.0,89730.0,0.17727065]
[1766992122671,0.1508,89746.0,89730.0,0.17727065]
[1766992123265,0.1508,89746.0,89729.0,0.00016716]
[1766992124175,0.0111559,89745.0,89729.0,0.00016716]
[1766992124472,0.0111565,89739.0,89723.0,0.05596]
[1766992125065,0.17727065,89740.0,89723.0,0.05596]
[1766992125270,0.17727065,89740.0,89719.0,0.011159]
[1766992125474,0.01116,89712.0,89676.0,0.06011805]
[1766992125681,0.10556,89711.0,89697.0,0.01016]
[1766992125877,0.00016716,89703.0,89680.0,0.1114442]
[1766992126083,0.05596,89702.0,89680.0,0.21136054]
[1766992126275,0.05596,89702.0,89680.0,0.03408989]
[1766992126471,8.266e-05,89701.0,89680.0,0.03408989]
[1766992126873,8.266e-05,89701.0,89681.0,0.11147774]
[1766992127876,0.17727065,89700.0,89681.0,0.11147774]
[1766992128074,0.02812003,89699.0,89681.0,0.11147774]
[1766992128275,0.02812003,89699.0,89662.0,0.0111661]
[1766992128276,0.03928173,89698.0,89660.0,0.17727065]
[1766992128470,0.00016726,89688.0,89672.0,0.03408989]